bitfinex/quotes_ETHUSD_20250608
["timestamp","ask_amount","ask_price","bid_price","bid_amount"]
[1749370943554,1.49911832,2520.1,2519.5,3.96904147]
[1749370943754,0.55,2520.1,2519.6,6.429]
[1749370944059,0.8212,2519.9,2519.8,3.96845392]
[1749370944251,0.8212,2519.9,2519.8,10.39745392]
[1749370944447,0.8212,2519.8,2519.4,0.5]
[1749370944647,0.8212,2519.8,2519.7,3.96858184]
[1749370945180,0.55,2519.8,2519.7,3.96858184]
[1749370945479,3.035249,2519.8,2519.7,3.96858184]
[1749370946474,3.035249,2519.8,2519.5,3.96904147]
[1749370946475,0.8212,2519.6,2519.5,3.96904147]
[1749370946651,0.8212,2519.6,2519.5,10.39804147]
[1749370946652,2.4712,2519.6,2519.5,10.39804147]
[1749370953054,0.8212,2519.6,2519.5,10.39804147]
[1749370953387,2.4722,2519.6,2519.5,10.39804147]
[1749370956993,19.6272,2519.6,2519.5,10.39804147]
[1749370958488,19.6272,2519.6,2519.5,3.96904147]
[1749370958715,21.66136883,2519.6,2519.5,10.39804147]
[1749370959371,19.6272,2519.6,2519.5,10.39804147]
[1749370962412,17.9762,2519.6,2519.5,10.39804147]
[1749370962563,18.806,2519.6,2519.5,10.39804147]
[1749370964715,18.806,2519.6,2519.5,10.37992877]
[1749370965487,19.356,2519.6,2519.5,10.37992877]
[1749370965828,22.79552649,2519.6,2519.5,10.37992877]
[1749370970326,19.75591474,2519.6,2519.5,10.37992877]
[1749370971838,19.75591474,2519.6,2519.5,3.95092877]
[1749370972337,19.75591474,2519.6,2519.5,10.37992877]
[1749370972693,18.10491474,2519.6,2519.5,10.37992877]
[1749370972891,19.75591474,2519.6,2519.5,10.37992877]
[1749370973096,21.9983959,2519.6,2519.5,10.37992877]
[1749370978805,21.9983959,2519.6,2519.5,10.37892877]
[1749370980551,23.18500443,2519.6,2519.5,10.37892877]
[1749370981059,21.9983959,2519.6,2519.5,10.37892877]
[1749370982810,21.9983959,2519.6,2519.5,3.95092877]
[1749370983860,23.18500443,2519.6,2519.5,3.95092877]
[1749370984159,21.9983959,2519.6,2519.5,3.95092877]
[1749370985167,19.75591474,2519.6,2519.5,3.95092877]
[1749370985519,19.75491474,2519.6,2519.5,3.95092877]
[1749370992371,18.805,2519.6,2519.5,3.95092877]
[1749370992578,19.75751656,2519.6,2519.5,3.95092877]
[1749370996161,19.75751656,2519.6,2519.5,10.37792877]
[1749370999191,19.75768194,2519.6,2519.5,10.37792877]
[1749371002174,19.75771398,2519.6,2519.5,10.37792877]
[1749371003198,21.75487654,2519.6,2519.5,3.95092877]
[1749371003503,23.73766902,2519.6,2519.5,10.37692877]
[1749371005907,22.94576902,2519.6,2519.5,10.37692877]
[1749371018235,20.94860646,2519.6,2519.5,10.37692877]
[1749371019657,19.75771398,2519.6,2519.5,10.37692877]
[1749371020158,19.75571398,2519.6,2519.5,10.37692877]
[1749371025005,18.10771398,2519.6,2519.5,10.37692877]
[1749371025331,19.75571398,2519.6,2519.5,10.37692877]
[1749371031961,18.10771398,2519.6,2519.5,11.20752877]
[1749371032256,19.75571398,2519.6,2519.5,11.20752877]
[1749371032428,18.803,2519.6,2519.5,11.20752877]
[1749371035829,18.803,2519.6,2519.5,3.95092877]
[1749371036024,18.803,2519.6,2519.5,10.37492877]
[1749371040868,18.803,2519.6,2519.5,11.18002877]
[1749371041257,18.803,2519.6,2519.5,14.1282761]
[1749371042170,18.803,2519.6,2519.5,30.1282761]
[1749371043270,18.803,2519.6,2519.5,27.18002877]
[1749371043575,18.802,2519.6,2519.5,27.18002877]
[1749371050372,18.802,2519.6,2519.5,19.95092877]
[1749371050564,18.802,2519.6,2519.5,26.37292877]
[1749371051076,18.802,2519.6,2519.5,10.37292877]
[1749371051374,21.57243,2519.6,2519.5,3.95092877]
[1749371051576,21.57243,2519.6,2519.5,10.37292877]
[1749371052078,22.52363843,2519.6,2519.5,10.37292877]
[1749371052381,22.52363843,2519.6,2519.5,3.95092877]
[1749371052581,22.52363843,2519.6,2519.5,10.37292877]
[1749371057679,21.57243,2519.6,2519.5,10.37292877]
[1749371057884,19.6113,2519.6,2519.5,10.37292877]
[1749371058138,18.802,2519.6,2519.5,10.37292877]
[1749371058285,17.155,2519.6,2519.5,10.37292877]
[1749371058447,18.802,2519.6,2519.5,10.37292877]
[1749371061293,17.155,2519.6,2519.5,10.37292877]
[1749371061493,18.802,2519.6,2519.5,10.37292877]
[1749371065617,18.802,2519.6,2519.5,10.37192877]
[1749371069883,18.802,2519.6,2519.5,3.95092877]
[1749371070060,19.5624,2519.6,2519.5,10.37192877]
[1749371073199,20.51436393,2519.6,2519.5,10.37192877]
[1749371074201,20.51336393,2519.6,2519.5,10.37192877]
[1749371074374,20.51336393,2519.6,2519.5,3.95092877]
[1749371074573,20.51336393,2519.6,2519.5,10.37192877]
[1749371075187,22.56470032,2519.6,2519.5,3.95092877]
[1749371075392,22.56470032,2519.6,2519.5,10.37192877]
[1749371081119,20.51336393,2519.6,2519.5,10.37192877]
[1749371084114,19.75296393,2519.6,2519.5,10.37192877]
[1749371088147,20.55536393,2519.6,2519.5,10.37092877]
[1749371091805,19.75296393,2519.6,2519.5,10.37092877]
[1749371098734,19.75311152,2519.6,2519.5,10.37092877]
[1749371104238,19.75311152,2519.6,2519.5,10.27861637]
[1749371105438,19.75380556,2519.6,2519.5,10.27861637]
[1749371108116,19.75380556,2519.6,2519.5,10.27761637]
[1749371108314,22.22210585,2519.6,2519.5,10.27761637]
[1749371108634,23.4131128,2519.6,2519.5,10.27761637]
[1749371108806,22.22210585,2519.6,2519.5,10.27761637]
[1749371109625,19.75380556,2519.6,2519.5,10.27761637]
[1749371112813,19.75376419,2519.6,2519.5,10.27761637]
[1749371114565,19.75376419,2519.6,2519.5,3.85861637]
[1749371114728,19.75376419,2519.6,2519.5,10.27761637]
[1749371121759,19.75376419,2519.6,2519.5,3.85861637]
[1749371121942,22.08534449,2519.6,2519.5,10.27761637]
[1749371122350,22.08534449,2519.6,2519.5,3.85861637]
[1749371122549,23.27629973,2519.6,2519.5,10.27761637]
[1749371131767,23.27629973,2519.6,2519.5,10.27661637]
[1749371136383,23.27429973,2519.6,2519.5,10.27661637]
[1749371140903,23.27332471,2519.6,2519.5,10.27661637]
[1749371142461,21.62932471,2519.6,2519.5,10.27661637]
[1749371142663,23.27332471,2519.6,2519.5,10.27661637]
[1749371142895,23.27332471,2519.6,2519.5,3.85861637]
[1749371143200,23.27332471,2519.6,2519.5,10.27661637]
[1749371143699,22.08291115,2519.6,2519.5,6.418]
[1749371143876,22.08291115,2519.6,2519.4,3.63407065]
[1749371144074,0.95233085,2519.5,2519.4,3.96916858]
[1749371144668,4.92088381,2519.5,2519.4,3.96916858]
[1749371146465,4.92106691,2519.5,2519.4,3.96916858]
[1749371147766,6.56506691,2519.5,2519.4,3.96916858]
[1749371152621,23.72106691,2519.5,2519.4,3.96916858]
[1749371153923,23.72106691,2519.5,2519.3,9.59110899]
[1749371154124,0.95251395,2519.4,2519.3,9.59110899]
[1749371155322,4.14232064,2519.4,2519.3,3.96935656]
[1749371155819,8.1108736,2519.4,2519.3,3.96935656]
[1749371156026,8.1108736,2519.4,2519.1,3.17327912]
[1749371156322,0.95251395,2519.3,2519.2,3.96951413]
[1749371156628,4.19360131,2519.3,2519.2,3.96951413]
[1749371156828,7.36962659,2519.3,2519.2,3.96951413]
[1749371157324,4.19360131,2519.3,2519.2,3.96951413]
[1749371158699,4.19360131,2519.3,2519.1,3.96966271]
[1749371158903,0.95251395,2519.2,2519.1,3.96966271]
[1749371160627,0.95251395,2519.2,2519.1,4.75736271]
[1749371161228,4.97647474,2519.2,2519.1,7.70688323]
[1749371161931,4.97647474,2519.2,2519.1,4.75736271]
[1749371162635,2.59551395,2519.2,2519.1,3.96966271]
[1749371170712,2.59551395,2519.2,2518.9,3.96989028]
[1749371170953,2.37975428,2519.0,2518.9,3.96998689]
[1749371171110,0.95251395,2519.0,2518.9,3.96998689]
[1749371172540,3.33165896,2519.0,2518.9,3.96998689]
[1749371172707,0.95251395,2519.0,2518.9,3.96998689]
[1749371173043,1.5151323,2519.1,2519.0,3.96982929]
[1749371173237,3.10020612,2519.1,2519.0,3.96982929]
[1749371174638,1.70869036,2519.1,2519.0,3.96982929]
[1749371174943,3.35169036,2519.1,2519.0,3.96982929]
[1749371175302,5.73024036,2519.1,2519.0,3.96982929]
[1749371175942,3.35169036,2519.1,2519.0,3.96982929]
[1749371176338,5.73027004,2519.1,2519.0,3.96982929]
[1749371176543,3.35169036,2519.1,2519.0,3.96982929]
[1749371176845,3.14465806,2519.1,2519.0,3.96982929]
[1749371177049,5.52320954,2519.1,2519.0,3.96982929]
[1749371181248,3.14465806,2519.1,2519.0,3.96982929]
[1749371181448,5.52363497,2519.1,2519.0,3.96982929]
[1749371181745,3.14465806,2519.1,2519.0,3.96982929]
[1749371181916,19.14465806,2519.1,2519.0,3.96982929]
[1749371182318,20.79245929,2519.1,2519.0,3.96982929]
[1749371182848,40.3306143,2519.1,2519.0,3.96982929]
[1749371183259,37.95145929,2519.1,2519.0,3.96982929]
[1749371185449,37.95145929,2519.1,2519.0,3.76279699]
[1749371191254,16.0,2519.0,2518.9,3.96991027]
[1749371191555,23.98863314,2519.0,2518.9,3.96991027]
[1749371192255,0.55,2518.9,2518.3,0.8322]
[1749371192461,1.58729177,2518.6,2518.5,3.97061743]
[1749371192754,19.90278896,2518.6,2518.5,3.97061743]
[1749371192960,22.28372662,2518.6,2518.5,3.97061743]
[1749371193322,19.33259572,2518.6,2518.5,3.97061743]
[1749371195850,16.95165806,2518.6,2518.5,3.97061743]
[1749371200231,18.53709932,2518.6,2518.5,3.97061743]
[1749371200531,16.95165806,2518.6,2518.5,3.97061743]
[1749371201031,18.53703627,2518.6,2518.5,3.97061743]
[1749371201250,20.17903627,2518.6,2518.5,3.97061743]
[1749371201565,18.59365806,2518.6,2518.5,3.97061743]
[1749371201965,20.17891908,2518.6,2518.5,3.97061743]
[1749371202469,20.17881587,2518.6,2518.5,3.97061743]
[1749371202631,19.22715781,2518.6,2518.5,3.97061743]
[1749371202928,20.17824853,2518.6,2518.5,3.97061743]
[1749371206073,37.34024853,2518.6,2518.5,3.97061743]
[1749371208472,36.38915234,2518.6,2518.5,3.97061743]
[1749371208676,37.3401524,2518.6,2518.5,3.97061743]
[1749371211768,42.85958092,2518.6,2518.4,10.38677292]
[1749371211951,2.53626353,2518.5,2518.4,10.38677292]
[1749371220596,0.95100006,2518.5,2518.4,10.38677292]
[1749371220768,2.5381748,2518.5,2518.4,10.38677292]
[1749371221388,2.59300006,2518.5,2518.4,10.38677292]
[1749371222286,4.97393772,2518.5,2518.4,10.38677292]
[1749371222654,2.59300006,2518.5,2518.4,10.38677292]
[1749371223055,4.97393772,2518.5,2518.4,10.38677292]
[1749371223692,2.59300006,2518.5,2518.4,10.38677292]
[1749371223996,4.97393772,2518.5,2518.4,10.38677292]
[1749371224584,18.59300006,2518.5,2518.3,3.97093277]
[1749371224765,0.95314698,2518.4,2518.3,3.97093277]
[1749371224969,0.95314698,2518.4,2518.3,10.38593277]
[1749371226391,16.0,2518.3,2517.9,3.97149742]
[1749371226595,4.54071382,2518.1,2518.0,3.97128845]
[1749371226761,5.4938608,2518.1,2518.0,3.97128845]
[1749371227113,5.4938608,2518.1,2518.0,3.97140587]
[1749371229315,2.54165054,2518.1,2518.0,3.97140587]
[1749371231081,2.54165054,2518.1,2517.9,3.97147735]
[1749371231284,2.14307786,2518.0,2517.8,10.38663596]
[1749371231484,3.78407786,2517.9,2517.8,10.38663596]
[1749371231722,2.59414698,2517.9,2517.8,10.38663596]
[1749371232723,3.78378133,2517.9,2517.8,10.38663596]
[1749371233022,2.59271015,2517.9,2517.8,10.38663596]
[1749371233217,3.78211087,2517.9,2517.8,10.38663596]
[1749371234296,3.78211087,2517.9,2517.8,3.97163596]
[1749371234619,3.7818853,2517.9,2517.8,10.38663596]
[1749371234828,2.59271015,2517.9,2517.8,10.38663596]
[1749371235125,3.78188872,2517.9,2517.8,10.38663596]
[1749371235319,20.94588872,2517.9,2517.8,10.38663596]
[1749371239728,20.94688872,2517.9,2517.8,11.18913596]
[1749371239927,19.75771015,2517.9,2517.8,11.18913596]
[1749371245904,18.11571015,2517.9,2517.8,11.18913596]
[1749371246103,19.75771015,2517.9,2517.8,11.18913596]
[1749371247443,18.11571015,2517.9,2517.8,11.18913596]
[1749371247738,18.806,2517.9,2517.8,11.18913596]
[1749371249341,17.164,2517.9,2517.8,11.18913596]
[1749371249507,18.806,2517.9,2517.8,11.18913596]
[1749371252652,18.805,2517.9,2517.8,11.18913596]
[1749371254960,18.11540328,2517.9,2517.8,11.18913596]
[1749371255257,18.805,2517.9,2517.8,11.18913596]
[1749371255454,17.164,2517.9,2517.8,11.18913596]
[1749371255652,18.805,2517.9,2517.8,11.18913596]
[1749371261267,1.641,2517.9,2517.8,11.18913596]
[1749371264878,1.18917857,2518.5,2518.4,3.97077509]
[1749371265078,3.780681,2518.5,2518.4,10.38377509]
[1749371266390,2.59150243,2518.5,2518.4,10.38377509]
[1749371268590,3.780681,2518.5,2518.4,10.38377509]
[1749371269100,2.59150243,2518.5,2518.4,10.38377509]
[1749371269279,3.780681,2518.5,2518.4,10.38377509]
[1749371274203,2.59150243,2518.5,2518.4,10.38377509]
[1749371274688,3.78110733,2518.5,2518.4,10.38377509]
[1749371275065,2.59150243,2518.5,2518.4,10.38377509]
[1749371280582,2.5933427,2518.5,2518.4,10.38377509]
[1749371281679,2.5933427,2518.5,2518.4,11.20937509]
[1749371283711,0.9523427,2518.5,2518.4,11.20937509]
[1749371284118,2.5923427,2518.5,2518.4,11.20937509]
[1749371288604,1.64,2518.5,2518.4,11.20937509]
[1749371292415,1.64,2518.5,2518.4,4.79637509]
[1749371292617,1.64,2518.5,2518.4,10.38177509]
[1749371298043,1.64,2518.5,2518.4,11.14667509]
[1749371300224,1.18836116,2519.1,2519.0,3.96982929]
[1749371300429,22.05911861,2519.2,2519.1,3.9696717]
[1749371300727,27.56072555,2519.2,2519.1,3.9696717]
[1749371301491,27.56072555,2519.2,2519.1,10.3796717]
[1749371302333,27.56072555,2519.2,2519.1,3.9696717]
[1749371302499,27.56072555,2519.2,2519.1,10.3796717]
[1749371307106,29.14922911,2519.2,2519.1,10.3796717]
[1749371307519,27.56072555,2519.2,2519.1,10.3796717]
[1749371307762,29.14922911,2519.2,2519.1,10.3796717]
[1749371314865,27.56072555,2519.2,2519.1,10.3796717]
[1749371315074,29.14739557,2519.2,2519.1,10.3796717]
[1749371315229,29.14739947,2519.2,2519.1,10.3796717]
[1749371315426,27.56072555,2519.2,2519.1,10.3796717]
[1749371317466,27.56072555,2519.2,2519.1,10.3786717]
[1749371317767,29.94166321,2519.2,2519.1,10.3786717]
[1749371318085,16.7709,2519.1,2519.0,3.96977736]
[1749371318286,0.7709,2519.0,2518.9,3.96994284]
[1749371318427,8.16130835,2519.0,2518.9,10.37894284]
[1749371320265,8.16130835,2519.0,2518.3,0.8292]
[1749371320433,4.05805745,2518.7,2518.6,3.97045977]
[1749371320643,1.73922236,2518.9,2518.8,3.97014451]
[1749371320644,18.38202854,2518.9,2518.8,3.97014451]
[1749371320854,23.18310109,2518.9,2518.8,10.37914451]
[1749371321062,23.97200109,2518.9,2518.8,10.37914451]
[1749371321656,28.03005854,2518.9,2518.8,10.37914451]
[1749371322675,25.64803,2518.9,2518.8,10.37914451]
[1749371322882,28.03005854,2518.9,2518.8,10.37914451]
[1749371323055,28.02962627,2518.9,2518.8,10.37914451]
[1749371323250,25.64759773,2518.9,2518.8,10.37914451]
[1749371323545,28.02962627,2518.9,2518.8,10.37914451]
[1749371323745,28.02962627,2518.9,2518.8,3.97014451]
[1749371324046,28.02962627,2518.9,2518.8,10.37914451]
[1749371324478,25.64759773,2518.9,2518.8,10.37914451]
[1749371324861,16.8179,2518.8,2518.2,3.97109046]
[1749371325055,1.18936658,2518.5,2518.4,3.97077509]
[1749371325297,6.64882569,2518.5,2518.4,10.37977509]
[1749371325652,7.83788575,2518.5,2518.4,3.97077509]
[1749371325852,6.64882569,2518.5,2518.4,10.37977509]
[1749371326171,6.64882569,2518.5,2518.4,3.97077509]
[1749371326373,7.55408047,2518.5,2518.4,10.37977509]
[1749371327647,8.74245834,2518.5,2518.4,10.37977509]
[1749371327874,7.83720356,2518.5,2518.4,10.37977509]
[1749371328185,6.64882569,2518.5,2518.4,10.37977509]
[1749371328614,7.8371832,2518.5,2518.4,10.37977509]
[1749371329818,24.6672832,2518.5,2517.8,3.97162845]
[1749371329988,20.05805745,2518.2,2518.1,3.97124816]
[1749371330196,22.1981832,2518.2,2518.1,10.38124816]
[1749371331194,21.00982569,2518.2,2518.1,10.38124816]
[1749371334527,16.95176824,2518.2,2518.1,10.38124816]
[1749371334741,17.35784186,2518.2,2518.1,10.38124816]
[1749371339726,17.35531784,2518.2,2518.1,10.38124816]
[1749371341242,2.58824422,2518.2,2518.1,11.19734816]
[1749371341744,1.639,2518.2,2518.1,11.19734816]
[1749371342607,2.58834001,2518.2,2518.1,11.19734816]
[1749371345436,2.58834001,2518.2,2518.1,10.38124816]
[1749371346033,2.58834001,2518.2,2518.1,3.97124816]
[1749371346341,4.09777109,2518.2,2518.1,3.97124816]
[1749371346554,21.28432637,2518.2,2518.1,3.97124816]
[1749371346746,21.28432637,2518.2,2518.1,10.38124816]
[1749371347359,20.09777109,2518.2,2518.1,10.38124816]
[1749371348163,0.7645,2518.1,2518.0,3.97132003]
[1749371348358,9.61115595,2518.1,2518.0,10.38132003]
[1749371348770,8.42251253,2518.1,2518.0,10.38132003]
[1749371348966,9.61133045,2518.1,2518.0,10.38132003]
[1749371349659,8.42251253,2518.1,2518.0,10.38132003]
[1749371352367,5.77189746,2518.1,2518.0,10.38132003]
[1749371353274,4.82255745,2518.1,2518.0,10.38132003]
[1749371353570,5.77402949,2518.1,2518.0,10.38132003]
[1749371353735,5.00952949,2518.1,2518.0,10.38132003]
[1749371353938,6.64752949,2518.1,2518.0,10.38132003]
[1749371354161,7.83703621,2518.1,2518.0,10.38132003]
[1749371354360,6.64752949,2518.1,2518.0,10.38132003]
[1749371356970,0.95147204,2518.1,2518.0,10.38132003]
[1749371357275,2.58947204,2518.1,2518.0,10.38132003]
[1749371358054,6.64752949,2518.1,2517.6,0.7544]
[1749371358375,5.24814214,2517.8,2517.7,10.38187909]
[1749371358577,5.24814214,2517.8,2517.7,3.97187909]
[1749371358578,5.00952949,2517.8,2517.7,3.97187909]
[1749371358805,5.00952949,2517.8,2517.7,10.38187909]
[1749371361670,6.19927483,2517.8,2517.7,10.38187909]
[1749371361865,5.00952949,2517.8,2517.7,10.38187909]
[1749371362079,6.19927619,2517.8,2517.7,10.38187909]
[1749371364919,6.19901507,2517.8,2517.7,10.38187909]
[1749371366315,7.83701507,2517.8,2517.7,10.38187909]
[1749371372632,3.77895762,2517.8,2517.7,10.38187909]
[1749371376134,2.58953672,2517.8,2517.7,10.38187909]
[1749371376305,3.7797196,2517.8,2517.7,10.38187909]
[1749371376628,2.58953672,2517.8,2517.7,10.38187909]
[1749371378353,6.64759417,2517.8,2517.7,3.97187909]
[1749371378660,6.64759417,2517.8,2517.7,10.38187909]
[1749371380867,8.23341628,2517.8,2517.7,10.38187909]
[1749371381043,6.64759417,2517.8,2517.7,10.38187909]
[1749371381655,8.23341628,2517.8,2517.7,10.38187909]
[1749371381833,6.64759417,2517.8,2517.7,10.38187909]
[1749371382858,8.23341628,2517.8,2517.7,10.38187909]
[1749371383153,6.64759417,2517.8,2517.7,10.38187909]
[1749371383520,8.23341628,2517.8,2517.7,10.38187909]
[1749371383944,6.64759417,2517.8,2517.7,10.38187909]
[1749371384341,8.23341628,2517.8,2517.7,10.38187909]
[1749371384854,6.64759417,2517.8,2517.7,10.38187909]
[1749371385243,8.23341628,2517.8,2517.7,10.38187909]
[1749371385859,8.23341628,2517.8,2517.7,3.97187909]
[1749371386060,8.23341628,2517.8,2517.7,10.38187909]
[1749371386361,9.03021628,2517.8,2517.7,3.97187909]
[1749371386672,27.51232227,2517.8,2517.7,6.41]
[1749371386832,23.45426482,2517.8,2517.7,6.41]
[1749371387859,23.45426482,2517.8,2517.7,10.38187909]
[1749371388250,23.45426482,2517.8,2517.7,6.41]
[1749371388939,0.764,2517.6,2517.5,3.97206528]
[1749371389274,7.36193411,2517.6,2517.5,10.38206528]
[1749371391236,24.52893411,2517.6,2517.5,10.38206528]
[1749371392442,19.70780511,2517.6,2517.5,10.38206528]
[1749371393052,18.11946517,2517.6,2517.5,10.38206528]
[1749371393376,19.70780511,2517.6,2517.5,10.38206528]
[1749371394145,18.11946517,2517.6,2517.5,10.38206528]
[1749371394567,19.70780511,2517.6,2517.5,10.38206528]
[1749371395074,18.11946517,2517.6,2517.5,10.38206528]
[1749371395454,19.70780511,2517.6,2517.5,10.38206528]
[1749371396200,18.11946517,2517.6,2517.5,10.38206528]
[1749371396674,19.70780511,2517.6,2517.5,10.38206528]
[1749371396878,18.11946517,2517.6,2517.5,10.38206528]
[1749371397448,19.75746517,2517.6,2517.5,10.38206528]
[1749371401987,35.75746517,2517.6,2517.5,10.38206528]
[1749371403187,34.11946517,2517.6,2517.5,11.20446528]
[1749371403486,35.75746517,2517.6,2517.5,11.20446528]
[1749371405650,36.94791694,2517.6,2517.5,11.20446528]
[1749371406798,19.30991694,2517.6,2517.5,11.20446528]
[1749371406962,19.75746517,2517.6,2517.5,11.20446528]
[1749371408389,19.75746517,2517.6,2517.5,10.38106528]
[1749371408585,19.75746517,2517.6,2517.5,3.97206528]
[1749371408990,35.75746517,2517.6,2517.5,10.38106528]
[1749371412568,18.59046517,2517.6,2517.5,10.38106528]
[1749371418633,19.78091694,2517.6,2517.5,3.97206528]
[1749371418806,16.0,2517.5,2517.4,3.97228578]
[1749371418991,18.14316062,2517.5,2517.4,10.38128578]
[1749371421876,16.95246517,2517.5,2517.4,10.38128578]
[1749371422094,20.69570607,2517.5,2517.4,10.38128578]
[1749371422503,18.14323735,2517.5,2517.4,10.38128578]
[1749371427943,3.78023735,2517.5,2517.4,10.38128578]
[1749371428498,19.78023735,2517.5,2517.4,10.38128578]
[1749371428913,18.14323735,2517.5,2517.4,10.38128578]
[1749371429092,19.78023735,2517.5,2517.4,10.38128578]
[1749371429536,18.14323735,2517.5,2517.4,10.38128578]
[1749371429695,2.58946517,2517.5,2517.4,10.38128578]
[1749371432151,0.95246517,2517.5,2517.4,10.38128578]
[1749371432365,2.58946517,2517.5,2517.4,10.38128578]
[1749371433856,6.64752262,2517.5,2517.4,3.97228578]
[1749371434064,22.64752262,2517.5,2517.4,10.38128578]
[1749371434642,10.02308609,2517.5,2517.2,3.97256732]
[1749371434849,0.95246517,2517.4,2517.3,6.409]
[1749371435154,0.95246517,2517.4,2517.3,10.38151022]
[1749371435350,1.94567534,2517.4,2517.3,10.38151022]
[1749371436122,22.00373279,2517.4,2517.3,10.38151022]
[1749371438357,16.0,2517.3,2517.2,3.97263345]
[1749371438657,18.14273452,2517.3,2517.2,10.38163345]
[1749371440740,0.95246517,2517.3,2517.2,10.38163345]
[1749371441335,2.58946517,2517.3,2517.2,11.20153345]
[1749371442539,0.95246517,2517.3,2517.2,11.20153345]
[1749371442752,17.19026935,2517.7,2517.6,3.97203686]
[1749371443039,22.14133638,2517.7,2517.6,10.38103686]
[1749371443441,20.50433638,2517.7,2517.6,10.38103686]
[1749371443743,18.58897036,2517.7,2517.6,10.38103686]
[1749371444833,0.95197036,2517.7,2517.6,10.38103686]
[1749371445153,1.637,2517.7,2517.6,10.38103686]
[1749371445358,2.58890972,2517.7,2517.6,10.38103686]
[1749371450884,0.95190972,2517.7,2517.6,10.38103686]
[1749371451188,2.58890972,2517.7,2517.6,10.38103686]
[1749371451878,18.58890972,2517.7,2517.6,10.38103686]
[1749371454870,17.637,2517.7,2517.6,10.38103686]
[1749371455576,16.0,2517.7,2517.6,10.38103686]
[1749371455778,18.35688715,2518.1,2518.0,3.97140587]
[1749371456092,35.75486253,2518.1,2518.0,10.37940587]
[1749371463800,18.804,2518.1,2518.0,10.37940587]
[1749371467688,20.6844,2518.1,2517.4,0.7919]
[1749371467986,21.80355771,2518.0,2517.5,6.407]
[1749371468137,20.85385745,2518.0,2517.9,3.9715636]
[1749371468333,21.80382286,2518.0,2517.9,10.3835636]
[1749371468528,25.91051471,2518.0,2517.9,10.3835636]
[1749371469275,27.10040186,2518.0,2517.9,10.3835636]
[1749371469845,27.10040186,2518.0,2517.9,6.412]
[1749371470446,27.10040186,2518.0,2517.9,10.3835636]
[1749371470871,23.04234441,2518.0,2517.9,10.3835636]
[1749371473794,20.90249185,2518.0,2517.9,10.3835636]
[1749371474333,23.04291701,2518.0,2517.9,10.3835636]
[1749371474886,20.90249185,2518.0,2517.9,10.3835636]
[1749371476156,23.04287809,2518.0,2517.9,10.3835636]
[1749371476931,22.09159532,2518.0,2517.9,10.3835636]
[1749371477522,20.90249185,2518.0,2517.9,10.3835636]
[1749371479748,20.90249185,2518.0,2517.2,0.7919]
[1749371480066,0.8221,2517.7,2517.6,3.9718813]
[1749371480280,0.8221,2517.7,2517.5,3.97211968]
[1749371480569,0.8221,2517.7,2517.6,6.409]
[1749371480860,0.8221,2517.7,2517.6,10.38103686]
[1749371486058,2.4591,2517.7,2517.6,10.38103686]
[1749371487622,19.40936009,2517.7,2517.6,10.38103686]
[1749371488365,19.40934419,2517.7,2517.6,10.38103686]
[1749371494177,18.58724419,2517.7,2517.6,10.38103686]
[1749371496450,19.77751007,2517.7,2517.6,10.38103686]
[1749371497065,16.793,2517.6,2517.5,3.97218221]
[1749371497385,18.93351007,2517.6,2517.5,10.38118221]
[1749371497554,17.74433781,2517.6,2517.5,10.38118221]
[1749371500990,1.74433781,2517.6,2517.5,10.38118221]
[1749371501977,0.95133781,2517.6,2517.5,10.38118221]
[1749371502185,2.14203279,2517.6,2517.5,10.38118221]
[1749371503696,0.95133781,2517.6,2517.5,10.38118221]
[1749371504603,2.14275305,2517.6,2517.5,10.38118221]
[1749371505301,3.77975305,2517.6,2517.5,10.38118221]
[1749371507502,18.58833781,2517.6,2517.5,10.38118221]
[1749371510406,18.58997169,2517.6,2517.5,10.38118221]
[1749371511391,16.95297169,2517.6,2517.5,10.38118221]
[1749371511603,18.58997169,2517.6,2517.5,11.18418221]
[1749371513981,2.58997169,2517.6,2517.5,11.18418221]
[1749371515702,2.58931326,2517.6,2517.5,11.18418221]
[1749371522517,1.637,2517.6,2517.5,11.18418221]
[1749371522818,2.58886761,2517.6,2517.5,11.18418221]
[1749371523021,1.637,2517.6,2517.5,11.18418221]
[1749371530349,1.637,2517.6,2517.5,11.18218221]
[1749371531481,1.637,2517.6,2517.5,4.77518221]
[1749371531678,1.637,2517.6,2517.5,11.18218221]
[1749371533286,1.637,2517.6,2517.5,4.77518221]
[1749371533589,1.637,2517.6,2517.5,10.37918221]
[1749371538468,1.637,2517.6,2517.5,14.43723966]
[1749371541088,1.637,2517.6,2517.5,15.25333966]
[1749371541471,17.166,2518.3,2518.1,3.97124816]
[1749371541472,18.35567833,2518.3,2518.1,3.97124816]
[1749371541668,2.58791449,2518.2,2518.1,3.97124816]
[1749371541866,2.58791449,2518.2,2518.1,10.37824816]
[1749371547699,2.58791449,2518.2,2518.1,11.17314816]
[1749371547900,1.636,2518.2,2518.1,11.17314816]
[1749371558112,16.0,2518.5,2518.4,3.97077509]
[1749371558425,18.58736947,2518.5,2518.4,10.37577509]
[1749371558631,2.58736947,2518.5,2518.4,10.37577509]
[1749371560195,2.58736947,2518.5,2518.4,11.14567509]
[1749371560730,1.18906795,2518.9,2518.7,3.97030213]
[1749371560932,2.58703235,2518.8,2518.7,3.97030213]
[1749371561131,2.58703235,2518.8,2518.7,11.14520213]
[1749371561429,1.636,2518.8,2518.7,11.14520213]
[1749371561820,17.162,2519.0,2518.9,3.96998689]
[1749371562121,18.798,2519.0,2518.9,10.37498689]
[1749371572046,17.162,2519.0,2518.9,10.37498689]
[1749371572252,18.797,2519.0,2518.9,10.37498689]
[1749371575973,18.797,2519.0,2518.9,14.43304434]
[1749371576274,18.797,2519.0,2518.9,15.20624434]
[1749371578884,18.797,2519.0,2518.9,11.14818689]
[1749371583345,0.7604,2519.6,2519.5,3.96904147]
[1749371583549,19.34411034,2519.6,2519.5,10.37204147]
[1749371584289,2.58371034,2519.6,2519.5,10.37204147]
[1749371584458,0.8004,2519.8,2519.7,3.96872643]
[1749371584666,3.3842284,2519.8,2519.7,10.37172643]
[1749371584866,2.5838284,2519.8,2519.7,10.37172643]
[1749371586150,1.635,2519.8,2519.7,10.37172643]
[1749371586378,2.58406254,2519.8,2519.7,10.37172643]
[1749371594289,1.635,2519.8,2519.7,10.37172643]
[1749371594476,2.58510072,2519.8,2519.7,10.37172643]
[1749371597924,17.155,2520.0,2519.9,3.96841144]
[1749371598065,19.73991745,2520.0,2519.9,10.36941144]
[1749371598564,18.79,2520.0,2519.9,10.36941144]
[1749371598960,19.73977527,2520.0,2519.9,10.36941144]
[1749371599672,18.79,2520.0,2519.9,10.36941144]
[1749371599874,19.73967643,2520.0,2519.9,10.36941144]
[1749371600295,18.79,2520.0,2519.9,10.36941144]
[1749371600705,19.73961678,2520.0,2519.9,10.36941144]
[1749371601487,18.79,2520.0,2519.9,3.96841144]
[1749371601678,19.73959448,2520.0,2519.9,10.36941144]